[Event "Late-Titled-Tuesday-Blitz-February-13-2024"]
[Site "Chess.com"]
[Date "2024.02.13"]
[Round "6"]
[White "BilodeauA"]
[Black "vi_pranav"]
[Result "1-0"]
[WhiteElo "2975"]
[BlackElo "3043"]
[TimeControl "180+1"]
[EndTime "15:08:49 PST"]
[Termination "BilodeauA won by resignation"]

1. e4 {[%clk 0:03:00.9]} 1... e5 {[%clk 0:02:59.3]} 2. Nf3 {[%clk 0:03:01]} 2...
Nc6 {[%clk 0:02:59.5]} 3. Bc4 {[%clk 0:03:01.7]} 3... Nf6 {[%clk 0:02:58.8]} 4.
d3 {[%clk 0:03:01.8]} 4... h6 {[%clk 0:02:58.7]} 5. c3 {[%clk 0:02:52.2]} 5...
d6 {[%clk 0:02:56.4]} 6. Nbd2 {[%clk 0:02:52.2]} 6... g6 {[%clk 0:02:53.4]} 7.
Nf1 {[%clk 0:02:50.9]} 7... Bg7 {[%clk 0:02:53]} 8. Ng3 {[%clk 0:02:51.1]} 8...
O-O {[%clk 0:02:50.8]} 9. a4 {[%clk 0:02:51.5]} 9... Be6 {[%clk 0:02:49.9]} 10.
Bxe6 {[%clk 0:02:50.1]} 10... fxe6 {[%clk 0:02:50.8]} 11. O-O {[%clk 0:02:49.4]}
11... Kh7 {[%clk 0:02:50.5]} 12. b4 {[%clk 0:02:47.4]} 12... a5 {[%clk
0:02:47.5]} 13. b5 {[%clk 0:02:46.8]} 13... Ne7 {[%clk 0:02:47.4]} 14. d4 {[%clk
0:02:47.2]} 14... Nd7 {[%clk 0:02:46.7]} 15. Be3 {[%clk 0:02:40.3]} 15... Qe8
{[%clk 0:02:40.5]} 16. Qe2 {[%clk 0:02:32.2]} 16... g5 {[%clk 0:02:30.4]} 17. h3
{[%clk 0:02:24.1]} 17... Ng6 {[%clk 0:02:28.3]} 18. Nh5 {[%clk 0:01:58.2]} 18...
Bh8 {[%clk 0:02:19.1]} 19. Rad1 {[%clk 0:01:49.8]} 19... Nf4 {[%clk 0:02:16.1]}
20. Nxf4 {[%clk 0:01:47.8]} 20... gxf4 {[%clk 0:02:11.3]} 21. Bc1 {[%clk
0:01:47.9]} 21... Qg6 {[%clk 0:02:11.6]} 22. Kh1 {[%clk 0:01:47.4]} 22... Rf7
{[%clk 0:02:07]} 23. Rg1 {[%clk 0:01:42.7]} 23... Rg8 {[%clk 0:02:06.6]} 24.
Rde1 {[%clk 0:01:36]} 24... Qh5 {[%clk 0:01:49.7]} 25. Qd1 {[%clk 0:01:27.4]}
25... Qg6 {[%clk 0:01:32.4]} 26. Bb2 {[%clk 0:01:24.3]} 26... Bf6 {[%clk
0:01:26.4]} 27. Qb3 {[%clk 0:01:20.1]} 27... Re7 {[%clk 0:01:21.2]} 28. Qc2
{[%clk 0:01:14.7]} 28... Qh5 {[%clk 0:01:20.5]} 29. Nh2 {[%clk 0:01:12.6]} 29...
Bh8 {[%clk 0:01:15.4]} 30. f3 {[%clk 0:01:02.4]} 30... Qf7 {[%clk 0:01:08.1]}
31. Rd1 {[%clk 0:01:02.6]} 31... Nf6 {[%clk 0:01:07.7]} 32. Rge1 {[%clk
0:00:58.4]} 32... Nh5 {[%clk 0:01:06.6]} 33. Nf1 {[%clk 0:00:58.7]} 33... Qg6
{[%clk 0:01:04.6]} 34. Re2 {[%clk 0:00:42.1]} 34... Bf6 {[%clk 0:01:02.1]} 35.
b6 {[%clk 0:00:36.5]} 35... cxb6 {[%clk 0:00:52.2]} 36. dxe5 {[%clk 0:00:36.9]}
36... Bxe5 {[%clk 0:00:51.4]} 37. c4 {[%clk 0:00:37.4]} 37... Reg7 {[%clk
0:00:45.1]} 38. Bxe5 {[%clk 0:00:36.2]} 38... dxe5 {[%clk 0:00:46]} 39. Rd6
{[%clk 0:00:35.9]} 39... Qf6 {[%clk 0:00:44]} 40. Rxb6 {[%clk 0:00:22.7]} 40...
Rd8 {[%clk 0:00:40.2]} 41. Rb5 {[%clk 0:00:18.9]} 41... Rgd7 {[%clk 0:00:36.6]}
42. Rb1 {[%clk 0:00:15.3]} 42... Kg6 {[%clk 0:00:32.4]} 43. Kh2 {[%clk
0:00:15.2]} 43... Qh4 {[%clk 0:00:31]} 44. Rbe1 {[%clk 0:00:12.7]} 44... Rd3
{[%clk 0:00:26.2]} 45. Qb2 {[%clk 0:00:12.8]} 45... Rd1 {[%clk 0:00:14.6]} 46.
Qc3 {[%clk 0:00:08.5]} 46... b6 {[%clk 0:00:14.9]} 47. c5 {[%clk 0:00:05.9]}
47... Rxe1 {[%clk 0:00:09.9]} 48. Rxe1 {[%clk 0:00:05.6]} 48... Rc8 {[%clk
0:00:08.3]} 49. Qxe5 {[%clk 0:00:04.8]} 49... Qxe1 {[%clk 0:00:02.8]} 50. Qxe6+
{[%clk 0:00:05.4]} 50... Nf6 {[%clk 0:00:02.7]} 51. Qxc8 {[%clk 0:00:05]} 51...
bxc5 {[%clk 0:00:03.1]} 52. Qf5+ {[%clk 0:00:05.3]} 52... Kg7 {[%clk 0:00:02.9]}
53. e5 {[%clk 0:00:05.9]} 53... Nh7 {[%clk 0:00:02.9]} 54. e6 {[%clk 0:00:06]}
54... Nf6 {[%clk 0:00:02.5]} 55. Qxc5 {[%clk 0:00:03.9]} 55... Qxe6 {[%clk
0:00:02.2]} 56. Qxa5 {[%clk 0:00:04.1]} 56... Qe2 {[%clk 0:00:02.5]} 57. Nd2
{[%clk 0:00:03.7]} 57... Qe1 {[%clk 0:00:01.7]} 58. Qc7+ {[%clk 0:00:04.3]}
58... Kg6 {[%clk 0:00:01.8]} 59. Qxf4 {[%clk 0:00:05]} 59... Qa1 {[%clk
0:00:01.2]} 60. Qg3+ {[%clk 0:00:05.5]} 60... Kf7 {[%clk 0:00:01.4]} 61. Qf4
{[%clk 0:00:06.2]} 61... Kg6 {[%clk 0:00:01.3]} 62. Ne4 {[%clk 0:00:06.9]} 62...
Nh5 {[%clk 0:00:01.4]} 63. Qg4+ {[%clk 0:00:06.8]} 63... Kh7 {[%clk 0:00:01.8]}
64. Qxh5 {[%clk 0:00:07.1]} 64... Qxa4 {[%clk 0:00:02.5]} 65. Qf7+ {[%clk
0:00:07.4]} 65... Kh8 {[%clk 0:00:02.8]} 66. Qf6+ {[%clk 0:00:06.5]} 66... Kh7
{[%clk 0:00:03]} 67. Qe7+ {[%clk 0:00:07]} 67... Kh8 {[%clk 0:00:03.1]} 68. Qe5+
{[%clk 0:00:07.7]} 68... Kh7 {[%clk 0:00:03.6]} 69. f4 {[%clk 0:00:06.8]} 69...
Kg8 {[%clk 0:00:04.5]} 70. f5 {[%clk 0:00:06.7]} 70... h5 {[%clk 0:00:05.1]} 71.
f6 {[%clk 0:00:06.8]} 71... Kf7 {[%clk 0:00:04.4]} 72. Qxh5+ {[%clk 0:00:05.9]}
72... Ke6 {[%clk 0:00:04.7]} 73. Nc5+ {[%clk 0:00:06.5]} 73... Kxf6 {[%clk
0:00:04]} 74. Nxa4 {[%clk 0:00:06.9]} 1-0

[Event "Late-Titled-Tuesday-Blitz-February-13-2024"]
[Site "Chess.com"]
[Date "2024.02.13"]
[Round "6"]
[White "Flaccidmoves"]
[Black "Bilan_Danila"]
[Result "1/2-1/2"]
[WhiteElo "2429"]
[BlackElo "2533"]
[TimeControl "180+1"]
[EndTime "15:09:09 PST"]
[Termination "Game drawn by 50-move rule"]

1. d4 {[%clk 0:03:00.9]} 1... d5 {[%clk 0:02:51.4]} 2. c4 {[%clk 0:03:00.2]}
2... c6 {[%clk 0:02:51.8]} 3. cxd5 {[%clk 0:03:00.8]} 3... cxd5 {[%clk
0:02:52.1]} 4. Bg5 {[%clk 0:03:01.5]} 4... Nf6 {[%clk 0:02:52.2]} 5. Bxf6 {[%clk
0:03:01]} 5... gxf6 {[%clk 0:02:53.1]} 6. e3 {[%clk 0:03:01.5]} 6... Nc6 {[%clk
0:02:53.3]} 7. Nc3 {[%clk 0:03:01.4]} 7... e6 {[%clk 0:02:52.5]} 8. g3 {[%clk
0:02:58.7]} 8... Bd6 {[%clk 0:02:50]} 9. Bg2 {[%clk 0:02:58.8]} 9... Bd7 {[%clk
0:02:48.4]} 10. Nge2 {[%clk 0:02:58.9]} 10... Rc8 {[%clk 0:02:46.2]} 11. O-O
{[%clk 0:02:59]} 11... f5 {[%clk 0:02:45.9]} 12. Rc1 {[%clk 0:02:59.2]} 12...
Ne7 {[%clk 0:02:31.9]} 13. Qb3 {[%clk 0:02:56]} 13... Bc6 {[%clk 0:02:28.5]} 14.
Na4 {[%clk 0:02:55.1]} 14... O-O {[%clk 0:02:22.5]} 15. Nc5 {[%clk 0:02:54.3]}
15... b6 {[%clk 0:02:06.7]} 16. Nd3 {[%clk 0:02:51.1]} 16... Ng6 {[%clk
0:02:03.7]} 17. Rc3 {[%clk 0:02:46.6]} 17... Qd7 {[%clk 0:01:55.6]} 18. Rfc1
{[%clk 0:02:45.2]} 18... Ba4 {[%clk 0:01:47.4]} 19. Rxc8 {[%clk 0:02:40]} 19...
Bxb3 {[%clk 0:01:45.9]} 20. Rxf8+ {[%clk 0:02:40.6]} 20... Kxf8 {[%clk
0:01:42.6]} 21. axb3 {[%clk 0:02:41.2]} 21... Qb5 {[%clk 0:01:41.2]} 22. Rc3
{[%clk 0:02:41.6]} 22... Bb4 {[%clk 0:01:34.1]} 23. Nxb4 {[%clk 0:02:38]} 23...
Qxb4 {[%clk 0:01:35]} 24. Bf1 {[%clk 0:02:36.6]} 24... Qa5 {[%clk 0:01:33.1]}
25. Nc1 {[%clk 0:02:35.1]} 25... Qa1 {[%clk 0:01:30.5]} 26. Nd3 {[%clk
0:02:34.9]} 26... Kg7 {[%clk 0:01:24.5]} 27. Kg2 {[%clk 0:02:34.7]} 27... Nf8
{[%clk 0:01:22.8]} 28. Rc7 {[%clk 0:02:28.6]} 28... Ng6 {[%clk 0:01:11.1]} 29.
h4 {[%clk 0:02:27]} 29... Qd1 {[%clk 0:00:51.8]} 30. Rxa7 {[%clk 0:02:19.1]}
30... Qxb3 {[%clk 0:00:45.5]} 31. h5 {[%clk 0:02:17.1]} 31... Nh8 {[%clk
0:00:43]} 32. Ne5 {[%clk 0:02:16.3]} 32... Qd1 {[%clk 0:00:38.7]} 33. h6+ {[%clk
0:02:11]} 33... Kxh6 {[%clk 0:00:37.6]} 34. Nxf7+ {[%clk 0:02:10.3]} 34... Nxf7
{[%clk 0:00:37.6]} 35. Rxf7 {[%clk 0:02:11.2]} 35... Kg6 {[%clk 0:00:33.8]} 36.
Re7 {[%clk 0:02:06.9]} 36... Kf6 {[%clk 0:00:31.3]} 37. Rxh7 {[%clk 0:02:05.8]}
37... Qb3 {[%clk 0:00:30.1]} 38. Rb7 {[%clk 0:02:00.8]} 38... Qxb2 {[%clk
0:00:30.3]} 39. Kf3 {[%clk 0:01:47.7]} 39... e5 {[%clk 0:00:28.1]} 40. dxe5+
{[%clk 0:01:42.5]} 40... Kxe5 {[%clk 0:00:29]} 41. Bd3 {[%clk 0:01:30.1]} 41...
d4 {[%clk 0:00:21.2]} 42. exd4+ {[%clk 0:01:22.1]} 42... Qxd4 {[%clk 0:00:20.9]}
43. Re7+ {[%clk 0:01:14.1]} 43... Kf6 {[%clk 0:00:19.3]} 44. Re3 {[%clk
0:01:14.6]} 44... b5 {[%clk 0:00:18.3]} 45. Kg2 {[%clk 0:01:11.2]} 45... b4
{[%clk 0:00:17.1]} 46. Bc2 {[%clk 0:01:01.9]} 46... Kg5 {[%clk 0:00:10.7]} 47.
Kf1 {[%clk 0:00:46.6]} 47... Qd2 {[%clk 0:00:02.9]} 48. Bb3 {[%clk 0:00:44.3]}
48... f4 {[%clk 0:00:02.1]} 49. gxf4+ {[%clk 0:00:43.9]} 49... Kxf4 {[%clk
0:00:03]} 50. Kg2 {[%clk 0:00:44.4]} 50... Qc1 {[%clk 0:00:01.6]} 51. Ba4 {[%clk
0:00:32.9]} 51... Qc5 {[%clk 0:00:01.5]} 52. Bb3 {[%clk 0:00:29.3]} 52... Qg5+
{[%clk 0:00:01.6]} 53. Kf1 {[%clk 0:00:29.2]} 53... Qd5 {[%clk 0:00:01.1]} 54.
Ke2 {[%clk 0:00:28]} 54... Qc5 {[%clk 0:00:01.2]} 55. Rd3 {[%clk 0:00:24.8]}
55... Qb5 {[%clk 0:00:01.7]} 56. Kd2 {[%clk 0:00:24.4]} 56... Qa5 {[%clk
0:00:02.4]} 57. Re3 {[%clk 0:00:24.2]} 57... Qg5 {[%clk 0:00:02.6]} 58. Ke2
{[%clk 0:00:24.5]} 58... Qh6 {[%clk 0:00:02.6]} 59. Rf3+ {[%clk 0:00:24.8]}
59... Ke4 {[%clk 0:00:02.9]} 60. Re3+ {[%clk 0:00:24.1]} 60... Kd4 {[%clk
0:00:03.4]} 61. Rd3+ {[%clk 0:00:24.3]} 61... Kc5 {[%clk 0:00:02.5]} 62. Rd5+
{[%clk 0:00:24.5]} 62... Kc6 {[%clk 0:00:02.7]} 63. Rd3 {[%clk 0:00:25]} 63...
Qc1 {[%clk 0:00:02.9]} 64. Re3 {[%clk 0:00:24.8]} 64... Kc5 {[%clk 0:00:03.2]}
65. Rd3 {[%clk 0:00:24.8]} 65... Qb2+ {[%clk 0:00:03.2]} 66. Kf1 {[%clk
0:00:24.3]} 66... Qc1+ {[%clk 0:00:03.5]} 67. Ke2 {[%clk 0:00:24.3]} 67... Qf4
{[%clk 0:00:03.9]} 68. Re3 {[%clk 0:00:24.2]} 68... Kd4 {[%clk 0:00:03.7]} 69.
Rd3+ {[%clk 0:00:22.7]} 69... Kc5 {[%clk 0:00:04.3]} 70. Re3 {[%clk 0:00:23]}
70... Qg5 {[%clk 0:00:03.5]} 71. Rg3 {[%clk 0:00:21.7]} 71... Qe5+ {[%clk
0:00:03.4]} 72. Re3 {[%clk 0:00:21.8]} 72... Qb2+ {[%clk 0:00:03.5]} 73. Kf1
{[%clk 0:00:21.6]} 73... Qc1+ {[%clk 0:00:03.7]} 74. Kg2 {[%clk 0:00:21.6]}
74... Qd2 {[%clk 0:00:03.8]} 75. Kf3 {[%clk 0:00:21]} 75... Qc1 {[%clk
0:00:02.5]} 76. Kg2 {[%clk 0:00:20.8]} 76... Qa1 {[%clk 0:00:02.4]} 77. Kf3
{[%clk 0:00:20.7]} 77... Qg7 {[%clk 0:00:03]} 78. Ke2 {[%clk 0:00:20.9]} 78...
Qf6 {[%clk 0:00:03.2]} 79. Rf3 {[%clk 0:00:20.1]} 79... Qe5+ {[%clk 0:00:03.3]}
80. Re3 {[%clk 0:00:20.3]} 80... Qf6 {[%clk 0:00:03.8]} 81. Rf3 {[%clk
0:00:20.5]} 81... Qb2+ {[%clk 0:00:04.5]} 82. Kf1 {[%clk 0:00:20.3]} 82... Kd4
{[%clk 0:00:05.1]} 83. Kg2 {[%clk 0:00:20.5]} 83... Ke4 {[%clk 0:00:05.7]} 84.
Re3+ {[%clk 0:00:20.8]} 84... Kf4 {[%clk 0:00:06.1]} 85. Rf3+ {[%clk 0:00:21.1]}
85... Kg4 {[%clk 0:00:06.3]} 86. Rg3+ {[%clk 0:00:21.6]} 86... Kh4 {[%clk
0:00:06.2]} 87. Rh3+ {[%clk 0:00:21.9]} 87... Kg5 {[%clk 0:00:06.9]} 88. Rg3+
{[%clk 0:00:22.4]} 88... Kf6 {[%clk 0:00:07.5]} 89. Rf3+ {[%clk 0:00:23]} 89...
Ke5 {[%clk 0:00:08.2]} 90. Re3+ {[%clk 0:00:23.5]} 90... Kd4 {[%clk 0:00:08.8]}
91. Kf3 {[%clk 0:00:24]} 91... Qc1 {[%clk 0:00:09.3]} 92. Kg2 {[%clk 0:00:24.1]}
92... Qc6+ {[%clk 0:00:09.8]} 93. Kf1 {[%clk 0:00:24.3]} 93... Qh1+ {[%clk
0:00:09.7]} 94. Ke2 {[%clk 0:00:24.7]} 94... Qg1 {[%clk 0:00:10.3]} 95. Rg3
{[%clk 0:00:24.3]} 95... Qc1 {[%clk 0:00:09.9]} 96. Re3 {[%clk 0:00:24.1]} 96...
Qb2+ {[%clk 0:00:10.1]} 97. Kf1 {[%clk 0:00:24.3]} 97... Qd2 {[%clk 0:00:09.2]}
98. Rg3 {[%clk 0:00:23.7]} 98... Ke4 {[%clk 0:00:08.7]} 99. Kg2 {[%clk
0:00:23.9]} 99... Kf4 {[%clk 0:00:09]} 1/2-1/2

[Event "Late-Titled-Tuesday-Blitz-February-13-2024"]
[Site "Chess.com"]
[Date "2024.02.13"]
[Round "6"]
[White "TenisMaster"]
[Black "Agibileg"]
[Result "1/2-1/2"]
[WhiteElo "2926"]
[BlackElo "2749"]
[TimeControl "180+1"]
[EndTime "15:09:29 PST"]
[Termination "Game drawn by repetition"]

1. e4 {[%clk 0:03:00.9]} 1... e5 {[%clk 0:02:59.7]} 2. Nf3 {[%clk 0:03:00.1]}
2... Nc6 {[%clk 0:03:00]} 3. Bb5 {[%clk 0:02:58.4]} 3... a6 {[%clk 0:03:00.1]}
4. Ba4 {[%clk 0:02:58.4]} 4... Nf6 {[%clk 0:03:00.4]} 5. O-O {[%clk 0:02:56.9]}
5... d6 {[%clk 0:03:01]} 6. Bxc6+ {[%clk 0:02:49.1]} 6... bxc6 {[%clk
0:03:01.9]} 7. d4 {[%clk 0:02:49.6]} 7... exd4 {[%clk 0:03:02.2]} 8. Nxd4 {[%clk
0:02:48.8]} 8... c5 {[%clk 0:03:02.6]} 9. Ne2 {[%clk 0:02:42.7]} 9... Be7 {[%clk
0:02:59.3]} 10. Ng3 {[%clk 0:02:41.7]} 10... O-O {[%clk 0:02:59.5]} 11. Nc3
{[%clk 0:02:40.3]} 11... a5 {[%clk 0:02:59.6]} 12. Re1 {[%clk 0:02:33.4]} 12...
a4 {[%clk 0:02:56.9]} 13. h3 {[%clk 0:02:32.4]} 13... a3 {[%clk 0:02:56.5]} 14.
b3 {[%clk 0:02:32]} 14... Nd7 {[%clk 0:02:52]} 15. Nd5 {[%clk 0:02:30.1]} 15...
Bf6 {[%clk 0:02:52.1]} 16. Nxf6+ {[%clk 0:02:29.2]} 16... Qxf6 {[%clk
0:02:50.9]} 17. Be3 {[%clk 0:02:23.4]} 17... Bb7 {[%clk 0:02:45.3]} 18. c4
{[%clk 0:02:20.2]} 18... Rfe8 {[%clk 0:02:42.2]} 19. f3 {[%clk 0:02:16.4]} 19...
Ne5 {[%clk 0:02:38]} 20. Kh2 {[%clk 0:02:14.9]} 20... Nc6 {[%clk 0:02:37.9]} 21.
Qd2 {[%clk 0:02:14.5]} 21... Nd4 {[%clk 0:02:37.2]} 22. Rad1 {[%clk 0:02:13.3]}
22... h6 {[%clk 0:02:32.6]} 23. Bxd4 {[%clk 0:02:11.8]} 23... cxd4 {[%clk
0:02:31.7]} 24. Qxd4 {[%clk 0:02:12.7]} 24... Qf4 {[%clk 0:02:30.4]} 25. Qd2
{[%clk 0:02:10.3]} 25... Qe5 {[%clk 0:02:28.2]} 26. Re2 {[%clk 0:02:05]} 26...
Bc6 {[%clk 0:02:09.1]} 27. Qe1 {[%clk 0:01:55.8]} 27... Qf4 {[%clk 0:02:06.2]}
28. Kh1 {[%clk 0:01:54.3]} 28... Re5 {[%clk 0:02:06.2]} 29. Nf5 {[%clk
0:01:47.6]} 29... Rae8 {[%clk 0:02:03.8]} 30. Nd4 {[%clk 0:01:27.9]} 30... Ba8
{[%clk 0:01:58.2]} 31. Qd2 {[%clk 0:01:26]} 31... Qf6 {[%clk 0:01:51.9]} 32. Nb5
{[%clk 0:01:22.1]} 32... Qe7 {[%clk 0:01:47]} 33. Rf2 {[%clk 0:01:17.7]} 33...
f5 {[%clk 0:01:36]} 34. exf5 {[%clk 0:01:17.3]} 34... Rxf5 {[%clk 0:01:36.1]}
35. Nxa3 {[%clk 0:01:16]} 35... d5 {[%clk 0:01:34.4]} 36. Nb5 {[%clk 0:01:11]}
36... dxc4 {[%clk 0:01:34.4]} 37. bxc4 {[%clk 0:01:11.9]} 37... Qh4 {[%clk
0:01:27.6]} 38. Nxc7 {[%clk 0:01:01.3]} 38... Rc8 {[%clk 0:01:10.3]} 39. Nxa8
{[%clk 0:00:59.8]} 39... Rxa8 {[%clk 0:01:06.7]} 40. Re2 {[%clk 0:00:54.3]}
40... Qxc4 {[%clk 0:01:04.3]} 41. Qd3 {[%clk 0:00:49.8]} 41... Qf7 {[%clk
0:00:58]} 42. Qb3 {[%clk 0:00:47.6]} 42... Rfa5 {[%clk 0:00:54.1]} 43. Qxf7+
{[%clk 0:00:44.5]} 43... Kxf7 {[%clk 0:00:55]} 44. Rd7+ {[%clk 0:00:43.9]} 44...
Kf8 {[%clk 0:00:50.1]} 45. Ree7 {[%clk 0:00:42.8]} 45... Rg5 {[%clk 0:00:49.6]}
46. Rf7+ {[%clk 0:00:40]} 46... Kg8 {[%clk 0:00:49.2]} 47. Ra7 {[%clk
0:00:39.2]} 47... Rb8 {[%clk 0:00:45.7]} 48. h4 {[%clk 0:00:35.5]} 48... Rg6
{[%clk 0:00:43.4]} 49. Rfb7 {[%clk 0:00:30.5]} 49... Rc8 {[%clk 0:00:42.1]} 50.
Rc7 {[%clk 0:00:25.6]} 50... Rb8 {[%clk 0:00:41.8]} 51. Rc2 {[%clk 0:00:19]}
51... Rb4 {[%clk 0:00:42]} 52. h5 {[%clk 0:00:15.9]} 52... Rh4+ {[%clk
0:00:40.2]} 53. Kg1 {[%clk 0:00:16.5]} 53... Rxh5 {[%clk 0:00:41.1]} 54. a4
{[%clk 0:00:16.9]} 54... Rd5 {[%clk 0:00:29.9]} 55. Ra2 {[%clk 0:00:16.7]} 55...
Rdd6 {[%clk 0:00:24.3]} 56. a5 {[%clk 0:00:16.3]} 56... Ra6 {[%clk 0:00:16.4]}
57. Rxa6 {[%clk 0:00:16.5]} 57... Rxa6 {[%clk 0:00:17.3]} 58. Kf2 {[%clk
0:00:17.2]} 58... Kf7 {[%clk 0:00:17.7]} 59. Ke3 {[%clk 0:00:17.9]} 59... Ke6
{[%clk 0:00:18.4]} 60. Kd4 {[%clk 0:00:18.1]} 60... Kd6 {[%clk 0:00:19]} 61. Kc4
{[%clk 0:00:17.2]} 61... Kc6 {[%clk 0:00:18.8]} 62. Kb4 {[%clk 0:00:17.7]} 62...
Ra8 {[%clk 0:00:18.9]} 63. Rc2+ {[%clk 0:00:17.9]} 63... Kb7 {[%clk 0:00:19]}
64. Re2 {[%clk 0:00:18.2]} 64... Rb8 {[%clk 0:00:17.3]} 65. Re6 {[%clk
0:00:15.8]} 65... Ka7+ {[%clk 0:00:16.4]} 66. Kc5 {[%clk 0:00:15.7]} 66... Rb2
{[%clk 0:00:15.7]} 67. Rg6 {[%clk 0:00:15.9]} 67... Rb7 {[%clk 0:00:11.6]} 68.
a6 {[%clk 0:00:16]} 68... Rd7 {[%clk 0:00:09.3]} 69. Kc4 {[%clk 0:00:15.4]}
69... Ka8 {[%clk 0:00:06.1]} 70. Kb5 {[%clk 0:00:14]} 70... Ka7 {[%clk
0:00:06.4]} 71. Kc5 {[%clk 0:00:14.5]} 71... Ka8 {[%clk 0:00:04.5]} 72. Kb6
{[%clk 0:00:14.9]} 72... Rf7 {[%clk 0:00:03.7]} 73. Re6 {[%clk 0:00:14.8]} 73...
Rf8 {[%clk 0:00:03.1]} 74. Re7 {[%clk 0:00:12.5]} 74... g5 {[%clk 0:00:02.5]}
75. Rh7 {[%clk 0:00:10.1]} 75... Rf6+ {[%clk 0:00:02.4]} 76. Kb5 {[%clk
0:00:10.1]} 76... Rg6 {[%clk 0:00:02.4]} 77. a7 {[%clk 0:00:07.9]} 77... g4
{[%clk 0:00:02]} 78. f4 {[%clk 0:00:08.4]} 78... g3 {[%clk 0:00:01.7]} 79. Kc5
{[%clk 0:00:06.1]} 79... Rf6 {[%clk 0:00:01.8]} 80. Kd5 {[%clk 0:00:02.9]} 80...
Rxf4 {[%clk 0:00:01.4]} 81. Rxh6 {[%clk 0:00:03.3]} 81... Rf2 {[%clk 0:00:01.9]}
82. Rh7 {[%clk 0:00:02.9]} 82... Rxg2 {[%clk 0:00:02.2]} 83. Kc6 {[%clk
0:00:03.6]} 83... Rc2+ {[%clk 0:00:02.4]} 84. Kb6 {[%clk 0:00:04.1]} 84... Rb2+
{[%clk 0:00:02.9]} 85. Ka6 {[%clk 0:00:04.7]} 85... Ra2+ {[%clk 0:00:03.1]} 86.
Kb6 {[%clk 0:00:05.5]} 86... Rh2 {[%clk 0:00:03.1]} 87. Rg7 {[%clk 0:00:05.1]}
87... Rb2+ {[%clk 0:00:03.4]} 88. Ka6 {[%clk 0:00:05.8]} 88... Ra2+ {[%clk
0:00:03.7]} 89. Kb6 {[%clk 0:00:06.5]} 89... Rb2+ {[%clk 0:00:04.2]} 90. Ka6
{[%clk 0:00:07.1]} 90... Ra2+ {[%clk 0:00:04.6]} 91. Kb6 {[%clk 0:00:07.9]}
91... Rb2+ {[%clk 0:00:05]} 1/2-1/2